[Event "MČR v rapid šachu družstev 2019"]
[Site "Teplice, Czech Republic"]
[Date "2019.09.15"]
[Round "4.6"]
[White "Sokolov, Alexander"]
[Black "Cernousek, Lukas"]
[Result "0-1"]
[TimeControl "15 min. + 5s"]
[WhiteElo "2384"]
[BlackElo "2478"]

1. e4 {[%clk 00:15:07]} {[%emt 00:00:02]} e6 {[%clk 00:15:09]} {[%emt
00:00:02]} 2. d4 {[%clk 00:15:10]} {[%emt 00:00:02]} d5 {[%clk 00:15:13]} 3.
Nd2 {[%clk 00:15:13]} {[%emt 00:00:02]} c5 {[%clk 00:15:17]} {[%emt 00:00:01]}
4. Ngf3 {[%clk 00:15:14]} {[%emt 00:00:04]} a6 {[%clk 00:15:04]} {[%emt
00:00:17]} 5. exd5 {[%clk 00:15:15]} {[%emt 00:00:04]} exd5 {[%clk 00:15:08]}
{[%emt 00:00:01]} 6. Be2 {[%clk 00:15:16]} {[%emt 00:00:05]} c4 {[%clk
00:15:05]} {[%emt 00:00:08]} 7. O-O {[%clk 00:13:46]} {[%emt 00:01:34]} Bd6
{[%clk 00:14:48]} {[%emt 00:00:21]} 8. Re1 {[%clk 00:13:47]} {[%emt 00:00:05]}
Ne7 {[%clk 00:14:52]} 9. b3 {[%clk 00:13:15]} {[%emt 00:00:37]} b5 {[%clk
00:14:48]} {[%emt 00:00:08]} 10. a4 {[%clk 00:13:14]} {[%emt 00:00:07]} Bb7
{[%clk 00:14:34]} {[%emt 00:00:19]} 11. Nf1 {[%clk 00:12:50]} {[%emt 00:00:29]}
Nbc6 {[%clk 00:14:08]} {[%emt 00:00:31]} 12. Ng3 {[%clk 00:12:21]} {[%emt
00:00:34]} O-O {[%clk 00:14:11]} {[%emt 00:00:03]} 13. Nh4 {[%clk 00:11:53]}
{[%emt 00:00:33]} g6 {[%clk 00:09:23]} {[%emt 00:04:53]} 14. Bh6 {[%clk
00:11:23]} {[%emt 00:00:35]} Re8 {[%clk 00:09:27]} 15. Bg5 {[%clk 00:11:12]}
{[%emt 00:00:17]} Qb6 {[%clk 00:08:09]} {[%emt 00:01:22]} 16. c3 {[%clk
00:10:31]} {[%emt 00:00:47]} cxb3 {[%clk 00:07:34]} {[%emt 00:00:41]} 17. Qxb3
{[%clk 00:08:48]} {[%emt 00:01:48]} Na5 {[%clk 00:07:37]} {[%emt 00:00:01]} 18.
Qb1 {[%clk 00:08:19]} {[%emt 00:00:34]} b4 {[%clk 00:06:14]} {[%emt 00:01:28]}
19. cxb4 {[%clk 00:08:04]} {[%emt 00:00:20]} Bxb4 {[%clk 00:05:37]} {[%emt
00:00:42]} 20. Rd1 {[%clk 00:07:28]} {[%emt 00:00:41]} Nec6 {[%clk 00:04:53]}
{[%emt 00:00:48]} 21. Nf3 {[%clk 00:06:04]} {[%emt 00:01:30]} Nc4 {[%clk
00:04:41]} {[%emt 00:00:17]} 22. Qc1 {[%clk 00:04:39]} {[%emt 00:01:30]} Rac8
{[%clk 00:04:11]} {[%emt 00:00:35]} 23. Qf4 {[%clk 00:04:24]} {[%emt 00:00:20]}
Bd6 {[%clk 00:04:09]} {[%emt 00:00:06]} 24. Qg4 {[%clk 00:03:58]} {[%emt
00:00:31]} Bxg3 {[%clk 00:02:50]} {[%emt 00:01:25]} 25. Bxc4 {[%clk 00:04:02]}
{[%emt 00:00:01]} Bxf2+ {[%clk 00:02:53]} {[%emt 00:00:02]} 26. Kxf2 {[%clk
00:04:06]} {[%emt 00:00:01]} dxc4 {[%clk 00:01:55]} {[%emt 00:01:03]} 27. Rab1
{[%clk 00:04:09]} {[%emt 00:00:01]} Nb4 {[%clk 00:01:44]} {[%emt 00:00:16]} 28.
a5 {[%clk 00:03:09]} {[%emt 00:01:05]} Qxa5 {[%clk 00:01:16]} {[%emt 00:00:33]}
29. Ne5 {[%clk 00:02:04]} {[%emt 00:01:10]} c3 {[%clk 00:00:59]} {[%emt
00:00:22]} 30. Ra1 {[%clk 00:01:27]} {[%emt 00:00:42]} Qd5 {[%clk 00:00:35]}
{[%emt 00:00:28]} 31. Nd7 {[%clk 00:01:28]} {[%emt 00:00:04]} Re6 {[%clk
00:00:19]} {[%emt 00:00:22]} 32. Nf6+ {[%clk 00:01:19]} {[%emt 00:00:14]} Rxf6+
{[%clk 00:00:23]} {[%emt 00:00:01]} 33. Bxf6 {[%clk 00:01:23]} {[%emt
00:00:01]} c2 {[%clk 00:00:27]} 34. Rf1 {[%clk 00:00:58]} {[%emt 00:00:30]}
c1=Q {[%clk 00:00:13]} {[%emt 00:00:19]} 35. Rfxc1 {[%clk 00:00:09]} {[%emt
00:00:55]} Nd3+ {[%clk 00:00:17]} 36. Kg1 {[%clk 00:00:12]} {[%emt 00:00:03]}
Rxc1+ {[%clk 00:00:17]} {[%emt 00:00:05]} 37. Rxc1 {[%clk 00:00:16]} {[%emt
00:00:01]} Nxc1 {[%clk 00:00:21]} {[%emt 00:00:01]} 38. h4 {[%clk 00:00:13]}
{[%emt 00:00:08]} Nd3 {[%clk 00:00:14]} {[%emt 00:00:11]} 39. Qg3 {[%clk
00:00:13]} {[%emt 00:00:06]} Qxg2+ {[%clk 00:00:14]} {[%emt 00:00:05]} 40. Qxg2
{[%clk 00:00:16]} {[%emt 00:00:02]} Bxg2 41. Kxg2 {[%clk 00:00:20]} Nf4+ {[%clk
00:00:19]} {[%emt 00:00:04]} 42. Kf3 {[%clk 00:00:23]} {[%emt 00:00:03]} Nd5
{[%clk 00:00:23]} 43. Bd8 {[%clk 00:00:27]} f5 {[%clk 00:00:24]} {[%emt
00:00:04]} 44. Ba5 {[%clk 00:00:31]} {[%emt 00:00:01]} Kf7 {[%clk 00:00:28]}
{[%emt 00:00:01]} 45. Bd2 {[%clk 00:00:34]} {[%emt 00:00:02]} Ke6 {[%clk
00:00:32]} {[%emt 00:00:01]} 46. Ke2 {[%clk 00:00:36]} {[%emt 00:00:03]} Kd6
{[%clk 00:00:34]} {[%emt 00:00:02]} 47. Kd3 {[%clk 00:00:41]} Kc6 {[%clk
00:00:34]} {[%emt 00:00:05]} 48. Kc4 {[%clk 00:00:45]} f4 {[%clk 00:00:30]}
{[%emt 00:00:10]} 0-1

[Event "MČR v rapid šachu družstev 2019"]
[Site "Teplice, Czech Republic"]
[Date "2019.09.15"]
[Round "4.7"]
[White "Vrbata, Zbynek"]
[Black "Dolezal, Radoslav"]
[Result "1/2-1/2"]
[TimeControl "15 min. + 5s"]
[WhiteElo "2376"]
[BlackElo "2363"]

1. d4 {[%clk 00:15:09]} {[%emt 00:01:14]} d5 {[%clk 00:15:08]} {[%emt
00:00:02]} 2. c4 {[%clk 00:15:11]} {[%emt 00:00:03]} c6 {[%clk 00:15:11]}
{[%emt 00:00:02]} 3. Nf3 {[%clk 00:15:11]} {[%emt 00:00:05]} Nf6 {[%clk
00:15:14]} {[%emt 00:00:02]} 4. e3 {[%clk 00:15:14]} {[%emt 00:00:02]} e6
{[%clk 00:15:00]} {[%emt 00:00:19]} 5. b3 {[%clk 00:15:14]} {[%emt 00:00:05]}
Nbd7 {[%clk 00:14:59]} {[%emt 00:00:06]} 6. Nbd2 {[%clk 00:15:14]} {[%emt
00:00:04]} Be7 {[%clk 00:14:38]} {[%emt 00:00:27]} 7. Bb2 {[%clk 00:15:15]}
{[%emt 00:00:04]} O-O {[%clk 00:14:41]} {[%emt 00:00:02]} 8. Be2 {[%clk
00:15:17]} {[%emt 00:00:03]} c5 {[%clk 00:14:40]} {[%emt 00:00:06]} 9. cxd5
{[%clk 00:14:46]} {[%emt 00:00:36]} Nxd5 {[%clk 00:14:38]} {[%emt 00:00:07]} 10.
O-O {[%clk 00:14:30]} {[%emt 00:00:21]} cxd4 {[%clk 00:14:39]} {[%emt
00:00:04]} 11. Nxd4 {[%clk 00:14:28]} {[%emt 00:00:07]} Nc5 {[%clk 00:14:04]}
{[%emt 00:00:40]} 12. Nc4 {[%clk 00:12:31]} {[%emt 00:02:02]} Bd7 {[%clk
00:13:58]} {[%emt 00:00:12]} 13. Rc1 {[%clk 00:11:42]} {[%emt 00:00:53]}
1/2-1/2

[Event "MČR v rapid šachu družstev 2019"]
[Site "Teplice, Czech Republic"]
[Date "2019.09.15"]
[Round "4.8"]
[White "Postupa, Pavel"]
[Black "Kuba, Jindrich"]
[Result "1/2-1/2"]
[TimeControl "15 min. + 5s"]
[WhiteElo "2203"]
[BlackElo "2229"]

1. e4 {[%clk 00:15:08]} {[%emt 00:00:01]} c5 {[%clk 00:15:09]} {[%emt
00:00:02]} 2. Nf3 {[%clk 00:15:12]} e6 {[%clk 00:15:13]} 3. g3 {[%clk
00:15:16]} Nc6 {[%clk 00:15:13]} {[%emt 00:00:08]} 4. Bg2 {[%clk 00:15:20]}
{[%emt 00:00:01]} d6 {[%clk 00:15:05]} {[%emt 00:00:13]} 5. O-O {[%clk
00:15:23]} {[%emt 00:00:02]} e5 {[%clk 00:15:04]} {[%emt 00:00:06]} 6. Nc3
{[%clk 00:14:48]} {[%emt 00:00:40]} Nf6 {[%clk 00:15:07]} {[%emt 00:00:02]} 7.
d3 {[%clk 00:14:50]} {[%emt 00:00:03]} Be7 {[%clk 00:15:11]} {[%emt 00:00:01]}
8. h3 {[%clk 00:14:53]} {[%emt 00:00:02]} O-O {[%clk 00:15:14]} {[%emt
00:00:02]} 9. Nh2 {[%clk 00:14:57]} {[%emt 00:00:02]} Nd4 {[%clk 00:14:48]}
{[%emt 00:00:31]} 10. f4 {[%clk 00:14:46]} {[%emt 00:00:15]} b5 {[%clk
00:14:47]} {[%emt 00:00:06]} 11. Be3 {[%clk 00:14:26]} {[%emt 00:00:25]} b4
{[%clk 00:14:45]} {[%emt 00:00:08]} 12. Bxd4 {[%clk 00:14:18]} {[%emt
00:00:12]} cxd4 {[%clk 00:14:39]} {[%emt 00:00:11]} 13. Ne2 {[%clk 00:14:23]}
Bb7 {[%clk 00:14:26]} {[%emt 00:00:19]} 14. Nf3 {[%clk 00:14:22]} {[%emt
00:00:05]} Qc7 {[%clk 00:14:21]} {[%emt 00:00:11]} 15. g4 {[%clk 00:13:44]}
{[%emt 00:00:43]} exf4 {[%clk 00:13:54]} {[%emt 00:00:32]} 16. Nxf4 {[%clk
00:13:45]} {[%emt 00:00:04]} d5 {[%clk 00:13:58]} {[%emt 00:00:01]} 17. e5
{[%clk 00:13:38]} {[%emt 00:00:12]} Nd7 {[%clk 00:13:49]} {[%emt 00:00:14]} 18.
Re1 {[%clk 00:13:29]} {[%emt 00:00:14]} Qb6 {[%clk 00:13:03]} {[%emt 00:00:52]}
19. e6 {[%clk 00:10:30]} {[%emt 00:03:04]} fxe6 {[%clk 00:13:05]} {[%emt
00:00:03]} 20. Rxe6 {[%clk 00:10:06]} {[%emt 00:00:30]} Bd6 {[%clk 00:13:08]}
{[%emt 00:00:02]} 21. Ne2 {[%clk 00:09:48]} {[%emt 00:00:22]} Rae8 {[%clk
00:13:04]} {[%emt 00:00:09]} 22. Rxe8 {[%clk 00:09:35]} {[%emt 00:00:19]} Rxe8
{[%clk 00:13:08]} {[%emt 00:00:01]} 23. Nexd4 {[%clk 00:09:31]} {[%emt
00:00:09]} Bc5 {[%clk 00:12:24]} {[%emt 00:00:49]} 24. c3 {[%clk 00:09:35]}
{[%emt 00:00:01]} Ne5 {[%clk 00:12:29]} 25. Kh1 {[%clk 00:09:27]} {[%emt
00:00:12]} Nxf3 {[%clk 00:12:13]} {[%emt 00:00:21]} 26. Nxf3 {[%clk 00:09:28]}
{[%emt 00:00:04]} d4 {[%clk 00:11:28]} {[%emt 00:00:50]} 27. Qb3+ {[%clk
00:08:00]} {[%emt 00:01:32]} Kh8 {[%clk 00:11:27]} {[%emt 00:00:05]} 28. cxb4
{[%clk 00:07:57]} {[%emt 00:00:08]} Bxb4 {[%clk 00:11:15]} {[%emt 00:00:17]} 29.
a3 {[%clk 00:07:52]} {[%emt 00:00:11]} Bc5 {[%clk 00:11:15]} {[%emt 00:00:05]}
30. Qxb6 {[%clk 00:07:53]} {[%emt 00:00:04]} Bxb6 {[%clk 00:11:18]} {[%emt
00:00:03]} 31. Re1 {[%clk 00:07:51]} {[%emt 00:00:07]} Rxe1+ {[%clk 00:09:21]}
{[%emt 00:02:03]} 32. Nxe1 {[%clk 00:07:54]} {[%emt 00:00:01]} Ba6 {[%clk
00:09:23]} {[%emt 00:00:02]} 33. Be4 {[%clk 00:07:14]} {[%emt 00:00:46]} g6
{[%clk 00:09:21]} {[%emt 00:00:08]} 34. Nc2 {[%clk 00:07:15]} {[%emt 00:00:04]}
Bb5 {[%clk 00:09:08]} {[%emt 00:00:17]} 35. Kg2 {[%clk 00:06:43]} {[%emt
00:00:37]} Kg7 {[%clk 00:09:11]} {[%emt 00:00:01]} 36. Nb4 {[%clk 00:06:35]}
{[%emt 00:00:13]} Bd7 {[%clk 00:07:37]} {[%emt 00:01:39]} 37. Kf3 {[%clk
00:06:13]} {[%emt 00:00:27]} h5 {[%clk 00:07:26]} {[%emt 00:00:16]} 38. Nd5
{[%clk 00:06:01]} {[%emt 00:00:17]} Bd8 {[%clk 00:07:14]} {[%emt 00:00:17]} 39.
Nf4 {[%clk 00:05:56]} {[%emt 00:00:10]} hxg4+ {[%clk 00:07:06]} {[%emt
00:00:13]} 40. hxg4 {[%clk 00:05:58]} {[%emt 00:00:03]} g5 {[%clk 00:06:59]}
{[%emt 00:00:13]} 41. Nd5 {[%clk 00:05:48]} {[%emt 00:00:14]} Be6 {[%clk
00:06:27]} {[%emt 00:00:36]} 42. Nb4 {[%clk 00:05:49]} {[%emt 00:00:04]} Bd7
{[%clk 00:06:13]} {[%emt 00:00:20]} 43. Bf5 {[%clk 00:05:00]} {[%emt 00:00:55]}
Be8 {[%clk 00:05:57]} {[%emt 00:00:21]} 44. Ke4 {[%clk 00:04:41]} {[%emt
00:00:23]} Bb6 {[%clk 00:05:30]} {[%emt 00:00:32]} 45. Kd5 {[%clk 00:04:39]}
{[%emt 00:00:07]} Kf6 {[%clk 00:05:23]} {[%emt 00:00:12]} 46. Kc4 {[%clk
00:03:04]} {[%emt 00:01:40]} Bf7+ {[%clk 00:05:20]} {[%emt 00:00:09]} 47. Kb5
{[%clk 00:03:07]} {[%emt 00:00:02]} Ke5 {[%clk 00:04:51]} {[%emt 00:00:34]} 48.
Nc6 {[%clk 00:02:26]} {[%emt 00:00:46]} Kd6 {[%clk 00:04:52]} {[%emt 00:00:03]}
49. Nb4 {[%clk 00:02:12]} {[%emt 00:00:20]} Be8+ {[%clk 00:04:30]} {[%emt
00:00:27]} 50. Ka6 {[%clk 00:02:08]} {[%emt 00:00:09]} Kc5 {[%clk 00:04:10]}
{[%emt 00:00:25]} 51. Kb7 {[%clk 00:02:00]} {[%emt 00:00:13]} Kd6 {[%clk
00:03:50]} {[%emt 00:00:25]} 52. Kc8 {[%clk 00:01:01]} {[%emt 00:01:04]} Ba4
{[%clk 00:02:39]} {[%emt 00:01:17]} 53. Kb7 {[%clk 00:00:59]} {[%emt 00:00:07]}
Bc5 {[%clk 00:02:15]} {[%emt 00:00:28]} 54. Ka6 {[%clk 00:00:38]} {[%emt
00:00:27]} Bb6 {[%clk 00:02:11]} {[%emt 00:00:09]} 55. Kb7 {[%clk 00:00:32]}
{[%emt 00:00:11]} Bc5 {[%clk 00:02:13]} {[%emt 00:00:03]} 56. Na6 {[%clk
00:00:35]} {[%emt 00:00:02]} Bc6+ {[%clk 00:01:48]} {[%emt 00:00:30]} 57. Kb8
{[%clk 00:00:37]} {[%emt 00:00:01]} Bb6 {[%clk 00:01:49]} {[%emt 00:00:05]} 58.
Nb4 {[%clk 00:00:24]} {[%emt 00:00:18]} Ba4 {[%clk 00:01:52]} {[%emt 00:00:02]}
59. Kc8 {[%clk 00:00:26]} {[%emt 00:00:03]} Bc5 {[%clk 00:01:45]} {[%emt
00:00:11]} 60. Na6 {[%clk 00:00:24]} {[%emt 00:00:07]} Bb6 {[%clk 00:01:49]}
{[%emt 00:00:01]} 61. Nb8 {[%clk 00:00:16]} {[%emt 00:00:13]} Bb5 {[%clk
00:01:22]} {[%emt 00:00:33]} 62. b3 {[%clk 00:00:19]} {[%emt 00:00:02]} Be8
{[%clk 00:01:24]} {[%emt 00:00:03]} 63. a4 {[%clk 00:00:14]} {[%emt 00:00:09]}
Kc5 {[%clk 00:01:10]} {[%emt 00:00:16]} 64. Be6 {[%clk 00:00:10]} {[%emt
00:00:12]} Kb4 {[%clk 00:01:04]} {[%emt 00:00:09]} 65. Kb7 {[%clk 00:00:11]}
{[%emt 00:00:06]} Kc3 {[%clk 00:00:50]} {[%emt 00:00:19]} 66. Bc4 {[%clk
00:00:14]} {[%emt 00:00:02]} Bg6 {[%clk 00:00:50]} {[%emt 00:00:05]} 67. Nc6
{[%clk 00:00:16]} {[%emt 00:00:03]} Bxd3 {[%clk 00:00:47]} {[%emt 00:00:09]} 68.
Bxd3 {[%clk 00:00:19]} {[%emt 00:00:02]} Kxd3 {[%clk 00:00:51]} {[%emt
00:00:01]} 69. a5 {[%clk 00:00:23]} {[%emt 00:00:01]} Bc5 {[%clk 00:00:41]}
{[%emt 00:00:14]} 70. Nxa7 {[%clk 00:00:25]} {[%emt 00:00:03]} Bxa7 {[%clk
00:00:33]} {[%emt 00:00:14]} 71. Kxa7 {[%clk 00:00:29]} {[%emt 00:00:01]} Kc2
{[%clk 00:00:37]} {[%emt 00:00:01]} 72. Kb6 {[%clk 00:00:27]} {[%emt 00:00:07]}
d3 {[%clk 00:00:41]} {[%emt 00:00:01]} 73. a6 {[%clk 00:00:31]} d2 {[%clk
00:00:45]} 74. a7 {[%clk 00:00:36]} d1=Q {[%clk 00:00:49]} {[%emt 00:00:03]} 75.
a8=Q {[%clk 00:00:38]} {[%emt 00:00:02]} Qd4+ {[%clk 00:00:50]} {[%emt
00:00:04]} 76. Kc7 {[%clk 00:00:41]} {[%emt 00:00:02]} Qe5+ {[%clk 00:00:53]}
{[%emt 00:00:07]} 77. Kd7 {[%clk 00:00:48]} {[%emt 00:00:04]} Kxb3 {[%clk
00:00:31]} {[%emt 00:00:27]} 78. Qf3+ {[%clk 00:00:48]} {[%emt 00:00:06]} Kc4
{[%clk 00:00:32]} {[%emt 00:00:03]} 79. Qf1+ {[%clk 00:00:23]} {[%emt
00:00:31]} Kd4 {[%clk 00:00:34]} {[%emt 00:00:02]} 80. Qd1+ {[%clk 00:00:09]}
{[%emt 00:00:19]} Ke4 {[%clk 00:00:38]} {[%emt 00:00:01]} 81. Qh1+ {[%clk
00:00:10]} {[%emt 00:00:05]} Kf4 {[%clk 00:00:31]} {[%emt 00:00:12]} 82. Qh2+
{[%clk 00:00:14]} Ke4 {[%clk 00:00:35]} {[%emt 00:00:01]} 83. Qg2+ {[%clk
00:00:19]} Kf4 {[%clk 00:00:31]} {[%emt 00:00:09]} 84. Qh2+ 1/2-1/2

[Event "MČR v rapid šachu družstev 2019"]
[Site "Teplice, Czech Republic"]
[Date "2019.09.15"]
[Round "4.9"]
[White "Vojta, Tomas"]
[Black "Soural, Jan"]
[Result "1-0"]
[TimeControl "15 min. + 5s"]
[WhiteElo "2402"]
[BlackElo "2121"]

1. e4 {[%clk 00:15:08]} {[%emt 00:00:01]} c5 {[%clk 00:15:06]} {[%emt
00:00:04]} 2. f4 {[%clk 00:15:10]} {[%emt 00:00:02]} d5 {[%clk 00:15:06]}
{[%emt 00:00:05]} 3. exd5 {[%clk 00:15:13]} {[%emt 00:00:02]} Nf6 {[%clk
00:15:08]} {[%emt 00:00:03]} 4. Nf3 {[%clk 00:15:14]} {[%emt 00:00:04]} Nxd5
{[%clk 00:14:58]} {[%emt 00:00:15]} 5. Nc3 {[%clk 00:15:18]} {[%emt 00:00:01]}
Nxc3 {[%clk 00:14:19]} {[%emt 00:00:45]} 6. bxc3 {[%clk 00:15:21]} {[%emt
00:00:02]} Nc6 {[%clk 00:14:18]} {[%emt 00:00:06]} 7. Ne5 {[%clk 00:14:38]}
{[%emt 00:00:47]} Qd5 {[%clk 00:13:03]} {[%emt 00:01:19]} 8. Bc4 {[%clk
00:12:47]} {[%emt 00:01:58]} Qe4+ {[%clk 00:13:02]} {[%emt 00:00:06]} 9. Qe2
{[%clk 00:12:47]} {[%emt 00:00:05]} Qxe2+ {[%clk 00:13:03]} {[%emt 00:00:04]}
10. Kxe2 {[%clk 00:12:50]} {[%emt 00:00:02]} Nxe5 {[%clk 00:12:14]} {[%emt
00:00:53]} 11. fxe5 {[%clk 00:12:54]} {[%emt 00:00:01]} Bg4+ {[%clk 00:09:02]}
{[%emt 00:03:17]} 12. Ke1 {[%clk 00:12:50]} {[%emt 00:00:10]} e6 {[%clk
00:08:34]} {[%emt 00:00:33]} 13. Bb5+ {[%clk 00:12:39]} {[%emt 00:00:16]} Kd8
{[%clk 00:08:36]} {[%emt 00:00:02]} 14. d4 {[%clk 00:12:19]} {[%emt 00:00:25]}
Bf5 {[%clk 00:07:50]} {[%emt 00:00:52]} 15. Rf1 {[%clk 00:11:59]} {[%emt
00:00:25]} Be7 {[%clk 00:06:57]} {[%emt 00:00:57]} 16. Be3 {[%clk 00:11:52]}
{[%emt 00:00:13]} Rc8 {[%clk 00:06:08]} {[%emt 00:00:54]} 17. Rd1 {[%clk
00:10:42]} {[%emt 00:01:15]} Kc7 {[%clk 00:06:11]} {[%emt 00:00:02]} 18. d5
{[%clk 00:10:15]} {[%emt 00:00:32]} Kb6 {[%clk 00:04:56]} {[%emt 00:01:20]} 19.
Rb1 {[%clk 00:08:00]} {[%emt 00:02:20]} Ka5 {[%clk 00:04:00]} {[%emt 00:01:01]}
20. d6 {[%clk 00:07:26]} {[%emt 00:00:39]} Bh4+ {[%clk 00:03:55]} {[%emt
00:00:09]} 21. g3 {[%clk 00:07:28]} {[%emt 00:00:03]} Bd8 {[%clk 00:03:47]}
{[%emt 00:00:12]} 22. Bd7 {[%clk 00:06:53]} {[%emt 00:00:40]} Rb8 {[%clk
00:03:51]} {[%emt 00:00:02]} 23. Bxc5 {[%clk 00:05:54]} {[%emt 00:01:04]} Bb6
{[%clk 00:03:09]} {[%emt 00:00:46]} 24. Bxb6+ {[%clk 00:05:10]} {[%emt
00:00:49]} axb6 {[%clk 00:03:12]} {[%emt 00:00:02]} 25. Rb3 {[%clk 00:04:48]}
{[%emt 00:00:27]} b5 {[%clk 00:03:15]} {[%emt 00:00:03]} 26. Rxb5+ {[%clk
00:04:50]} {[%emt 00:00:03]} Ka6 {[%clk 00:03:17]} {[%emt 00:00:02]} 27. Rb3
{[%clk 00:04:01]} {[%emt 00:00:55]} b5 {[%clk 00:02:57]} {[%emt 00:00:25]} 28.
Kd2 {[%clk 00:03:47]} {[%emt 00:00:19]} Rhd8 {[%clk 00:02:18]} {[%emt
00:00:44]} 29. Bc6 {[%clk 00:03:50]} {[%emt 00:00:01]} f6 {[%clk 00:02:22]} 30.
Rfb1 {[%clk 00:03:37]} {[%emt 00:00:19]} fxe5 {[%clk 00:02:21]} {[%emt
00:00:06]} 31. Bxb5+ {[%clk 00:03:39]} {[%emt 00:00:04]} Ka7 {[%clk 00:02:02]}
{[%emt 00:00:23]} 32. Ra3+ {[%clk 00:03:24]} {[%emt 00:00:21]} Kb6 {[%clk
00:02:06]} {[%emt 00:00:01]} 33. d7 {[%clk 00:02:52]} {[%emt 00:00:36]} Kc5
{[%clk 00:02:03]} {[%emt 00:00:08]} 34. Rab3 {[%clk 00:02:53]} {[%emt
00:00:04]} Rb6 {[%clk 00:01:07]} {[%emt 00:01:00]} 35. a4 {[%clk 00:02:43]}
{[%emt 00:00:15]} Be4 {[%clk 00:00:52]} {[%emt 00:00:20]} 36. Rb4 {[%clk
00:02:39]} {[%emt 00:00:09]} 1-0